{"text_format":"1","workbook":"xlsx","n_sheets":2,"sheets":["Smlouvy","Pomocné hodnoty"],"not_rendered":{"charts":0,"images":1,"macros":1,"external_links":0,"defined_names":0,"comments":1,"pivot_tables":0},"unopened":[],"bounds":{"document_bytes":16777216,"sheet_cells":100000,"rows_first":2000,"rows_last":500,"rows_between":2000,"halvings":0,"cell_chars":16384,"cell_head_chars":4096},"cells_cut":0,"cells_raw":0,"read":"whole","date_system":"1900"}

{"sheet":"Smlouvy","index":0,"n_rows":21,"n_cols":15,"rows_kept":21,"cut":false,"hidden":false,"merged":[[0,1,0,2],[1,1,1,2],[20,0,20,6],[15,0,15,4],[5,0,5,1],[9,0,9,1],[13,0,13,1],[7,0,7,4],[11,0,11,4]]}
["Žadatel"]
["Název projektu"]
["Číslo projektu"]
[]
[null,null,"Identifikace smlouvy (název / předmět / číslo)","Dodavatel","Typ investičního výdaje","Cena bez DPH","% DPH","Cena s DPH","I / N","Část SoD nesouvisející s předmětem podpory bez DPH","Nezpůsobilé výdaje stanovené žadatelem bez DPH","Komentář k nezpůsobilým výdajům stanoveným žadatelem","Výsledné způsobilé výdaje bez DPH","Výsledné způsobilé výdaje do RoPD včetně DPH","Nesouvisející s předmětem s DPH"]
["Realizace",null,null,null,null,null,null,{"$f":"F6*(1+(G6/100))","v":0},null,null,null,null,{"$f":"F6-J6-K6","v":0},{"$f":"M6*(1)","v":0},{"$f":"(J6)*(1+(G6/100))","v":0}]
[]
["Realizace celkem",null,null,null,null,{"$f":"SUM(F6:F7)","v":0},null,{"$f":"SUM(H6:H7)","v":0},null,{"$f":"SUM(J6:J7)","v":0},null,null,{"$f":"SUM(M6:M7)","v":0},{"$f":"SUM(N6:N7)","v":0},{"$f":"SUM(O6:O7)","v":0}]
[]
["Projektová příprava",null,null,null,null,null,null,{"$f":"F10*(1+(G10/100))","v":0},null,null,null,null,{"$f":"F10-J10-K10","v":0},{"$f":"M10*(1)","v":0},{"$f":"(J10)*(1+(G10/100))","v":0}]
[]
["Projektová příprava celkem",null,null,null,null,{"$f":"SUM(F10:F11)","v":0},null,{"$f":"SUM(H10:H11)","v":0},null,{"$f":"SUM(J10:J11)","v":0},null,null,{"$f":"SUM(M10:M11)","v":0},{"$f":"SUM(N10:N11)","v":0},{"$f":"SUM(O10:O11)","v":0}]
[]
["Propagace",null,null,null,"Irelevantní",null,null,0,null,null,null,null,{"$f":"F14-J14-K14","v":0},{"$f":"M14*(1)","v":0},{"$f":"(J14)*(1+(G14/100))","v":0}]
[]
["Propagace celkem",null,null,null,null,{"$f":"SUM(F14:F15)","v":0},null,{"$f":"SUM(H14:H15)","v":0},null,{"$f":"SUM(J14:J15)","v":0},null,null,{"$f":"SUM(M14:M15)","v":0},{"$f":"SUM(N14:N15)","v":0},{"$f":"SUM(O14:O15)","v":0}]
[]
[null,null,null,null,"Celkem",{"$f":"SUM(F8,F12,F16)","v":0},null,{"$f":"SUM(H8,H12,H16)","v":0},null,null,null,null,{"$f":"SUM(M8,M12,M16)","v":0},{"$f":"SUM(N8,N12,N16)","v":0}]
[null,null,null,null,"Celkem související s předmětem podpory",{"$f":"SUM(F8-J8,F12-J12,F16-J16)","v":0},null,{"$f":"SUM(H8-O8,H12-O12,H16-O16)","v":0}]
[]
["pozn.: Vyplňujte pouze bílo - zeleně stínované buňky ve sloupcích B až L. Při vyplňování se řiďte komentáři v rohu buněk! Po kontrole a nastavení konečné způsobilosti výdajů Vám projektový manažer zašle přehled částek způsobilých a nezpůsobilých výdajů ke všem zadaným smlouvám a zároveň konečnou podobu rozpočtu. Po odsouhlasení nastavíte v systému AIS částky v rozpočtu v souladu se zaslaným návrhem."]

{"sheet":"Pomocné hodnoty","index":1,"n_rows":29,"n_cols":1,"rows_kept":29,"cut":false,"hidden":false,"merged":[]}
["I"]
["N"]
[]
["Zateplení"]
["Výměna zdroje (včetně kotelny či rek. OS) - zdroj č. 1"]
["Výměna zdroje (včetně kotelny či rek. OS) - zdroj č. 2"]
["Vybudování nové otopné soustavy - zdroj č. 1"]
["Vybudování nové otopné soustavy - zdroj č. 2"]
["Instalace systému větrání s rekuperací odp. tepla"]
["Instalace solárního term. systému"]
["Instalace kogenerační jednotky"]
["Instalace fotovoltaického systému"]
["Výstavba veř. budov v pasivním e. s."]
["Další opatření navržená energetickým auditem"]
["Dokumentace skutečného provedení"]
["Stínicí technika s ručním mechanickým ovládáním"]
["Stínicí technika s ručním elektronickým ovládáním"]
["Stínicí technika s inteligentním motorickým řízením"]
["Úprava osvětlení - učebny, posluchárny, předn. sály - LED, dynamický způsob ovládání"]
["Úprava osvětlení - učebny, posluchárny, předn. sály - LED, biodynamický systém osvětlení"]
["Úprava osvětlení - ostatní prostory - pokročilý systém automatického ovládání"]
["Úprava akustických parametrů"]
["Rezerva"]
["Akumulace k fotovoltaickému systému"]
[]
["TDI, AD, BOZP"]
["Projektová příprava"]
[]
["Irelevantní"]